[Event "Championnat du monde jeunes U12F"]
[Date "2024.11.25"]
[White "Ivanova, Gabriela"]
[Black "Jung, Minju"]
[WhiteElo "1680"]
[BlackElo "1457"]
[Round "10.40"]
[Result "1/2-1/2"]
[TimeControl "5400+30"]

1. d4 {[%clk 1:30:54]} 1... d5 {[%clk 1:30:28]} 2. Nf3 {[%clk 1:30:44]} 2... Nf6
{[%clk 1:30:35]} 3. g3 {[%clk 1:30:30]} 3... Bf5 {[%clk 1:30:09]} 4. c4 {[%clk
1:30:34]} 4... e6 {[%clk 1:25:01]} 5. Bg2 {[%clk 1:30:27]} 5... c6 {[%clk
1:24:15]} 6. O-O {[%clk 1:30:33]} 6... Be7 {[%clk 1:22:42]} 7. Bf4 {[%clk
1:25:37]} 7... O-O {[%clk 1:20:06]} 8. Nbd2 {[%clk 1:23:15]} 8... Nbd7 {[%clk
1:18:42]} 9. Rc1 {[%clk 1:22:00]} 9... Rc8 {[%clk 1:15:26]} 10. Re1 {[%clk
1:09:35]} 10... Re8 {[%clk 1:09:48]} 11. Qb3 {[%clk 1:00:39]} 11... Qb6 {[%clk
1:02:26]} 12. Qxb6 {[%clk 0:53:21]} 12... axb6 {[%clk 0:57:34]} 13. Ne5 {[%clk
0:47:13]} 13... Bb4 {[%clk 0:47:10]} 14. Nxd7 {[%clk 0:44:15]} 14... Nxd7 {[%clk
0:45:55]} 15. a3 {[%clk 0:42:08]} 15... Bxd2 {[%clk 0:42:55]} 16. Bxd2 {[%clk
0:42:24]} 16... Nf6 {[%clk 0:38:56]} 17. Bf4 {[%clk 0:40:18]} 17... c5 {[%clk
0:30:13]} 18. dxc5 {[%clk 0:39:30]} 18... bxc5 {[%clk 0:29:47]} 19. cxd5 {[%clk
0:39:25]} 19... Nxd5 {[%clk 0:27:28]} 20. Bd6 {[%clk 0:38:47]} 20... Bg6 {[%clk
0:09:44]} 21. Bxc5 {[%clk 0:37:58]} 21... b5 {[%clk 0:05:21]} 22. Bd4 {[%clk
0:31:41]} 22... h6 {[%clk 0:03:50]} 23. e4 {[%clk 0:26:16]} 23... Ne7 {[%clk
0:03:28]} 24. Bc5 {[%clk 0:21:08]} 24... Nc6 {[%clk 0:03:04]} 25. Bf1 {[%clk
0:20:05]} 25... Rb8 {[%clk 0:01:57]} 26. Bd6 {[%clk 0:19:41]} 26... Rbc8 {[%clk
0:00:36]} 27. Bxb5 {[%clk 0:19:31]} 27... Red8 {[%clk 0:00:39]} 28. Bxc6 {[%clk
0:14:05]} 28... Rxd6 {[%clk 0:00:37]} 29. Bb7 {[%clk 0:14:11]} 29... Rb8 {[%clk
0:00:51]} 30. Rc8+ {[%clk 0:12:05]} 30... Rxc8 {[%clk 0:00:41]} 31. Bxc8 {[%clk
0:12:30]} 31... Rd2 {[%clk 0:01:04]} 32. b4 {[%clk 0:11:34]} 32... Ra2 {[%clk
0:01:07]} 33. b5 {[%clk 0:09:35]} 33... Rxa3 {[%clk 0:01:31]} 34. b6 {[%clk
0:09:48]} 34... Rb3 {[%clk 0:00:51]} 35. b7 {[%clk 0:09:08]} 35... Kf8 {[%clk
0:00:34]} 36. f3 {[%clk 0:05:55]} 36... Ke7 {[%clk 0:00:39]} 37. Rd1 {[%clk
0:05:42]} 37... Ke8 {[%clk 0:00:36]} 38. Rd3 {[%clk 0:02:36]} 38... Rb4 {[%clk
0:00:33]} 1/2-1/2

[Variant "Standard"]
[Site "Europe Echecs"]

[Event "Championnat du monde jeunes U12F"]
[Date "2024.11.25"]
[White "Li, Yeeshuen"]
[Black "Liu, Lillian Yu-Ning"]
[WhiteElo "1546"]
[BlackElo "1456"]
[Round "10.42"]
[Result "1-0"]
[TimeControl "5400+30"]

1. e4 {[%clk 1:30:57]} 1... e5 {[%clk 1:30:52]} 2. Nf3 {[%clk 1:31:22]} 2... Nc6
{[%clk 1:31:14]} 3. Bc4 {[%clk 1:31:46]} 3... Bc5 {[%clk 1:31:30]} 4. c3 {[%clk
1:32:10]} 4... d6 {[%clk 1:31:32]} 5. d4 {[%clk 1:31:30]} 5... Bb6 {[%clk
0:53:53]} 6. dxe5 {[%clk 1:19:35]} 6... dxe5 {[%clk 0:52:50]} 7. Qxd8+ {[%clk
1:18:38]} 7... Nxd8 {[%clk 0:45:52]} 8. Nxe5 {[%clk 1:17:53]} 8... Be6 {[%clk
0:44:41]} 9. Bd3 {[%clk 1:11:26]} 9... Ne7 {[%clk 0:41:31]} 10. Bf4 {[%clk
1:08:45]} 10... O-O {[%clk 0:25:19]} 11. Nc4 {[%clk 1:03:42]} 11... Bxc4 {[%clk
0:21:08]} 12. Bxc4 {[%clk 1:03:49]} 12... Ng6 {[%clk 0:21:10]} 13. Bg3 {[%clk
1:01:37]} 13... Re8 {[%clk 0:19:53]} 14. f3 {[%clk 1:00:41]} 14... Nc6 {[%clk
0:19:08]} 15. Nd2 {[%clk 0:57:46]} 15... Nce5 {[%clk 0:15:19]} 16. O-O-O {[%clk
0:55:18]} 16... Be3 {[%clk 0:14:01]} 17. Be2 {[%clk 0:47:44]} 17... h5 {[%clk
0:07:14]} 18. Bxe5 {[%clk 0:44:54]} 18... Rxe5 {[%clk 0:05:09]} 19. g3 {[%clk
0:40:53]} 19... Re7 {[%clk 0:03:42]} 20. Kc2 {[%clk 0:38:47]} 20... h4 {[%clk
0:02:53]} 21. Rhf1 {[%clk 0:35:57]} 21... hxg3 {[%clk 0:02:15]} 22. hxg3 {[%clk
0:36:17]} 22... a5 {[%clk 0:00:58]} 23. Nc4 {[%clk 0:34:51]} 23... Bc5 {[%clk
0:00:58]} 24. Rd5 {[%clk 0:34:15]} 24... b6 {[%clk 0:00:54]} 25. Nd2 {[%clk
0:26:39]} 25... c6 {[%clk 0:00:51]} 26. Rh5 {[%clk 0:26:18]} 26... Rd7 {[%clk
0:01:03]} 27. f4 {[%clk 0:21:03]} 27... Be3 {[%clk 0:01:06]} 28. Nc4 {[%clk
0:19:47]} 28... b5 {[%clk 0:01:09]} 29. Nxe3 {[%clk 0:20:06]} 29... Re7 {[%clk
0:01:16]} 30. Bf3 1-0

[Variant "Standard"]
[Site "Europe Echecs"]

[Event "Championnat du monde jeunes U12F"]
[Date "2024.11.25"]
[White "Istratova, Nika"]
[Black "Canossa, Elena"]
[WhiteElo "1473"]
[BlackElo "1482"]
[Round "10.43"]
[Result "1-0"]
[TimeControl "5400+30"]

1. e4 {[%clk 1:30:59]} 1... e5 {[%clk 1:30:53]} 2. Nf3 {[%clk 1:31:24]} 2... Nf6
{[%clk 1:31:18]} 3. Nxe5 {[%clk 1:31:33]} 3... d6 {[%clk 1:31:39]} 4. Nf3 {[%clk
1:31:41]} 4... Nxe4 {[%clk 1:32:00]} 5. Nc3 {[%clk 1:31:55]} 5... Nxc3 {[%clk
1:32:23]} 6. dxc3 {[%clk 1:32:19]} 6... Nc6 {[%clk 1:32:38]} 7. Bf4 {[%clk
1:31:37]} 7... a6 {[%clk 1:16:18]} 8. Bd3 {[%clk 1:29:47]} 8... Be7 {[%clk
1:16:35]} 9. O-O {[%clk 1:29:16]} 9... O-O {[%clk 1:15:48]} 10. Qd2 {[%clk
1:26:37]} 10... Be6 {[%clk 1:11:39]} 11. Bg5 {[%clk 1:16:44]} 11... Qd7 {[%clk
1:07:53]} 12. Bxe7 {[%clk 1:12:48]} 12... Qxe7 {[%clk 1:08:06]} 13. Ng5 {[%clk
1:11:20]} 13... h6 {[%clk 1:02:57]} 14. Nxe6 {[%clk 1:08:34]} 14... Qxe6 {[%clk
1:02:59]} 15. Rfe1 {[%clk 1:05:40]} 15... Qd7 {[%clk 0:53:48]} 16. Re3 {[%clk
1:01:30]} 16... Ne5 {[%clk 0:49:38]} 17. Rxe5 {[%clk 1:00:45]} 17... Kh8 {[%clk
0:35:50]} 18. Rh5 {[%clk 0:56:38]} 18... Qe6 {[%clk 0:19:30]} 19. Re1 {[%clk
0:54:36]} 19... Qf6 {[%clk 0:14:00]} 20. g4 {[%clk 0:45:13]} 20... g5 {[%clk
0:02:45]} 21. Be4 {[%clk 0:37:04]} 21... c6 {[%clk 0:01:25]} 22. Qd4 {[%clk
0:35:55]} 22... Qxd4 {[%clk 0:01:05]} 23. Rxh6+ {[%clk 0:35:58]} 23... Kg7
{[%clk 0:01:15]} 24. Rh7+ {[%clk 0:36:04]} 24... Kg8 {[%clk 0:01:38]} 25. cxd4
{[%clk 0:36:20]} 25... Rfe8 {[%clk 0:01:43]} 26. Rh3 {[%clk 0:35:11]} 26... Kg7
{[%clk 0:01:00]} 27. Rhe3 {[%clk 0:34:34]} 27... d5 {[%clk 0:00:59]} 28. Bf5
{[%clk 0:33:39]} 28... Rf8 {[%clk 0:00:49]} 29. Kg2 {[%clk 0:33:21]} 29... Kf6
{[%clk 0:00:42]} 30. h3 {[%clk 0:32:36]} 30... Rad8 {[%clk 0:00:44]} 31. Rf3
{[%clk 0:31:38]} 31... Kg7 {[%clk 0:01:03]} 32. Re7 {[%clk 0:30:53]} 32... Kg8
{[%clk 0:00:48]} 33. Rxb7 {[%clk 0:30:45]} 33... Rb8 {[%clk 0:00:40]} 34. Rxb8
{[%clk 0:30:06]} 34... Rxb8 {[%clk 0:01:05]} 35. b3 {[%clk 0:30:18]} 35... f6
{[%clk 0:00:56]} 36. Bd7 {[%clk 0:30:30]} 36... Kg7 {[%clk 0:00:39]} 37. Bxc6
{[%clk 0:30:43]} 37... Rc8 {[%clk 0:00:58]} 38. Bxd5 {[%clk 0:30:11]} 38... Rxc2
{[%clk 0:01:13]} 39. a4 {[%clk 0:30:08]} 39... Rd2 {[%clk 0:01:22]} 40. Bc4
{[%clk 0:30:16]} 40... Rxd4 {[%clk 0:01:29]} 41. Bxa6 {[%clk 0:30:34]} 41... Rd6
{[%clk 0:01:27]} 42. Bb5 {[%clk 0:30:32]} 42... Rb6 {[%clk 0:01:20]} 43. Bc4
{[%clk 0:29:42]} 43... Rc6 {[%clk 0:01:24]} 44. a5 {[%clk 0:29:53]} 44... Rc5
{[%clk 0:01:35]} 45. Rf5 {[%clk 0:29:58]} 45... Rc7 {[%clk 0:01:03]} 46. a6
{[%clk 0:30:08]} 46... Ra7 {[%clk 0:01:20]} 47. b4 {[%clk 0:30:24]} 1-0

[Variant "Standard"]
[Site "Europe Echecs"]

[Event "Championnat du monde jeunes U12F"]
[Date "2024.11.26"]
[White "Xue, Tianhao"]
[Black "Buyankhishig, Batpelden"]
[WhiteElo "1835"]
[BlackElo "1867"]
[Round "11.1"]
[Result "1-0"]
[TimeControl "5400+30"]

1. e4 {[%clk 1:30:58]} 1... e5 {[%clk 1:26:00]} 2. Nf3 {[%clk 1:31:25]} 2... Nc6
{[%clk 1:26:15]} 3. Bb5 {[%clk 1:31:50]} 3... a6 {[%clk 1:26:31]} 4. Ba4 {[%clk
1:32:15]} 4... Nf6 {[%clk 1:26:51]} 5. O-O {[%clk 1:32:38]} 5... Be7 {[%clk
1:26:52]} 6. Re1 {[%clk 1:32:57]} 6... b5 {[%clk 1:26:42]} 7. Bb3 {[%clk
1:33:22]} 7... d6 {[%clk 1:27:02]} 8. c3 {[%clk 1:33:48]} 8... O-O {[%clk
1:27:21]} 9. d4 {[%clk 1:34:14]} 9... Bg4 {[%clk 1:26:07]} 10. Be3 {[%clk
1:34:38]} 10... exd4 {[%clk 1:23:51]} 11. cxd4 {[%clk 1:34:59]} 11... Na5 {[%clk
1:23:55]} 12. Bc2 {[%clk 1:35:15]} 12... Nc4 {[%clk 1:21:58]} 13. Bc1 {[%clk
1:35:39]} 13... d5 {[%clk 1:17:17]} 14. e5 {[%clk 1:35:35]} 14... Ne4 {[%clk
1:15:42]} 15. b3 {[%clk 1:33:37]} 15... Nb6 {[%clk 1:13:58]} 16. Bxe4 {[%clk
1:32:27]} 16... dxe4 {[%clk 1:11:37]} 17. Rxe4 {[%clk 1:32:22]} 17... Bxf3
{[%clk 1:04:11]} 18. gxf3 {[%clk 1:30:26]} 18... f5 {[%clk 1:00:07]} 19. Re1
{[%clk 1:27:55]} 19... Bb4 {[%clk 0:55:08]} 20. Rf1 {[%clk 1:22:33]} 20... Qh4
{[%clk 0:49:59]} 21. a3 {[%clk 1:19:54]} 21... Be7 {[%clk 0:48:44]} 22. f4
{[%clk 1:18:49]} 22... Rad8 {[%clk 0:44:09]} 23. b4 {[%clk 1:09:09]} 23... Kh8
{[%clk 0:33:03]} 24. Nc3 {[%clk 0:47:24]} 24... g5 {[%clk 0:26:31]} 25. d5
{[%clk 0:36:47]} 25... Qh3 {[%clk 0:19:47]} 26. f3 {[%clk 0:26:30]} 26... gxf4
{[%clk 0:16:42]} 27. Qe2 {[%clk 0:22:35]} 27... Nxd5 {[%clk 0:11:07]} 28. Nxd5
{[%clk 0:22:58]} 28... Rxd5 {[%clk 0:11:34]} 29. Bb2 {[%clk 0:21:46]} 29... Qh6
{[%clk 0:08:03]} 30. Kh1 {[%clk 0:18:17]} 30... Qe6 {[%clk 0:06:57]} 31. Rg1
{[%clk 0:17:53]} 31... Rdd8 {[%clk 0:05:01]} 32. Rac1 {[%clk 0:17:53]} 32... c6
{[%clk 0:02:28]} 33. Qc2 {[%clk 0:17:44]} 33... Rc8 {[%clk 0:02:32]} 34. Rcd1
{[%clk 0:17:39]} 34... Rfd8 {[%clk 0:01:35]} 35. Rxd8+ {[%clk 0:17:25]} 35...
Rxd8 {[%clk 0:00:49]} 36. Qxc6 {[%clk 0:16:52]} 36... Qxc6 {[%clk 0:00:31]} 37.
e6+ {[%clk 0:17:18]} 1-0

[Variant "Standard"]
[Site "Europe Echecs"]

[Event "Championnat du monde jeunes U12F"]
[Date "2024.11.26"]
[White "Amanzhol, Khanzada"]
[Black "Hanya Shah"]
[WhiteElo "1780"]
[BlackElo "1888"]
[Round "11.2"]
[Result "1-0"]
[TimeControl "5400+30"]

1. e4 {[%clk 1:30:54]} 1... Nf6 {[%clk 1:30:54]} 2. e5 {[%clk 1:31:18]} 2... Nd5
{[%clk 1:31:20]} 3. d4 {[%clk 1:31:43]} 3... d6 {[%clk 1:31:45]} 4. Nf3 {[%clk
1:32:08]} 4... dxe5 {[%clk 1:32:10]} 5. Nxe5 {[%clk 1:32:33]} 5... g6 6. Bc4
{[%clk 1:32:33]} 6... c6 {[%clk 1:32:57]} 7. O-O {[%clk 1:32:47]} 7... Bg7
{[%clk 1:33:22]} 8. Re1 {[%clk 1:33:10]} 8... O-O {[%clk 1:33:44]} 9. Bb3 {[%clk
1:33:11]} 9... Be6 {[%clk 1:32:50]} 10. c3 {[%clk 1:33:17]} 10... Nd7 {[%clk
1:32:13]} 11. Nf3 {[%clk 1:33:41]} 11... Bg4 {[%clk 1:31:40]} 12. h3 {[%clk
1:33:03]} 12... Bxf3 {[%clk 1:21:46]} 13. Qxf3 {[%clk 1:33:26]} 13... N5b6
{[%clk 1:20:14]} 14. Bf4 {[%clk 1:32:33]} 14... a5 {[%clk 1:05:34]} 15. a4
{[%clk 1:30:59]} 15... c5 {[%clk 1:03:24]} 16. dxc5 {[%clk 1:23:48]} 16... Nxc5
{[%clk 1:02:23]} 17. Bc2 {[%clk 1:21:37]} 17... Nc4 {[%clk 0:47:55]} 18. b3
{[%clk 1:19:55]} 18... Nb6 {[%clk 0:42:47]} 19. Na3 {[%clk 1:18:03]} 19... Qd5
{[%clk 0:39:50]} 20. Qg3 {[%clk 1:08:53]} 20... Ne6 {[%clk 0:35:39]} 21. Nb5
{[%clk 1:07:50]} 21... Qc5 {[%clk 0:31:58]} 22. Be3 {[%clk 1:00:25]} 22... Qc6
{[%clk 0:31:24]} 23. Rad1 {[%clk 0:55:43]} 23... f5 {[%clk 0:29:35]} 24. Bxb6
{[%clk 0:54:37]} 24... Qxb6 {[%clk 0:28:48]} 25. Qe3 {[%clk 0:51:44]} 25... Nc5
{[%clk 0:23:29]} 26. Qxe7 {[%clk 0:47:02]} 26... Ne4 {[%clk 0:21:43]} 27. Bxe4
{[%clk 0:44:27]} 27... fxe4 {[%clk 0:20:58]} 28. Qxe4 {[%clk 0:41:48]} 28...
Qxf2+ {[%clk 0:20:02]} 29. Kh1 {[%clk 0:42:12]} 29... Qg3 {[%clk 0:15:43]} 30.
Re3 {[%clk 0:38:22]} 30... Qf2 {[%clk 0:14:14]} 31. Nd6 {[%clk 0:36:05]} 31...
Rad8 {[%clk 0:11:57]} 32. Re2 {[%clk 0:34:36]} 32... Qf6 {[%clk 0:08:32]} 33.
Red2 {[%clk 0:33:44]} 33... Ra8 {[%clk 0:06:14]} 34. Qxb7 {[%clk 0:33:12]} 34...
Kh8 {[%clk 0:06:05]} 35. Qd5 {[%clk 0:33:02]} 35... Ra7 {[%clk 0:06:12]} 36. c4
{[%clk 0:33:03]} 36... Bh6 {[%clk 0:05:22]} 37. Re2 {[%clk 0:32:23]} 37... Bf4
{[%clk 0:04:20]} 38. Ne4 {[%clk 0:30:28]} 38... Qh4 {[%clk 0:04:01]} 39. Qd4+
{[%clk 0:29:31]} 39... Rg7 {[%clk 0:04:19]} 40. Qc3 {[%clk 0:28:01]} 40... Bb8
{[%clk 0:03:55]} 41. Qe3 {[%clk 0:24:29]} 41... Re7 {[%clk 0:02:36]} 42. Qd4+
{[%clk 0:22:31]} 42... Be5 {[%clk 0:02:55]} 43. Qd3 {[%clk 0:22:53]} 43... Qf4
{[%clk 0:02:30]} 44. g3 {[%clk 0:23:15]} 44... Qf5 {[%clk 0:02:40]} 45. Kg2
{[%clk 0:23:07]} 45... Rd7 {[%clk 0:02:06]} 46. Qc2 {[%clk 0:18:39]} 46... Qf3+
{[%clk 0:02:24]} 47. Kh2 {[%clk 0:18:35]} 47... Rdf7 {[%clk 0:01:51]} 48. Rg2
{[%clk 0:18:36]} 48... Rf5 {[%clk 0:01:54]} 49. Qd3 {[%clk 0:17:57]} 49... Qh5
{[%clk 0:01:57]} 50. Qe2 {[%clk 0:15:41]} 50... Rf3 {[%clk 0:01:39]} 51. Rd3
{[%clk 0:15:23]} 51... Rxd3 {[%clk 0:01:50]} 52. Qxd3 {[%clk 0:15:47]} 52... g5
{[%clk 0:01:49]} 53. Nf2 {[%clk 0:15:45]} 53... Qf3 {[%clk 0:00:46]} 54. Qxf3
{[%clk 0:14:40]} 54... Rxf3 {[%clk 0:01:15]} 55. Ne4 {[%clk 0:14:00]} 55... h6
{[%clk 0:01:02]} 56. Nd2 {[%clk 0:11:17]} 56... Rc3 {[%clk 0:01:04]} 57. Nf1
{[%clk 0:11:06]} 57... Rxb3 {[%clk 0:01:12]} 58. Re2 {[%clk 0:11:26]} 58... Bd4
{[%clk 0:01:17]} 59. Rc2 {[%clk 0:11:27]} 59... Bc5 {[%clk 0:01:15]} 60. Nd2
{[%clk 0:11:18]} 60... Re3 {[%clk 0:01:07]} 61. Nf1 {[%clk 0:10:23]} 61... Ra3
{[%clk 0:01:14]} 62. Nd2 {[%clk 0:10:37]} 62... Rxa4 {[%clk 0:00:54]} 63. Nb3
{[%clk 0:10:51]} 63... Bd6 {[%clk 0:01:00]} 64. Nd4 {[%clk 0:10:56]} 64... Rb4
{[%clk 0:00:43]} 65. Ne6 {[%clk 0:10:38]} 65... Kg8 {[%clk 0:00:50]} 66. c5
{[%clk 0:11:03]} 66... Kf7 {[%clk 0:00:59]} 67. Nd8+ {[%clk 0:10:42]} 67... Ke8
{[%clk 0:01:09]} 68. Nc6 {[%clk 0:11:03]} 68... Bxg3+ {[%clk 0:01:10]} 69. Kxg3
{[%clk 0:11:25]} 69... Rb3+ {[%clk 0:01:35]} 70. Kg4 {[%clk 0:11:47]} 70... a4
{[%clk 0:02:00]} 71. Ne5 {[%clk 0:11:04]} 71... a3 {[%clk 0:02:12]} 72. c6
{[%clk 0:11:23]} 72... Kd8 {[%clk 0:02:19]} 73. c7+ {[%clk 0:11:47]} 73... Kc8
{[%clk 0:02:36]} 74. Nc6 {[%clk 0:12:07]} 1-0

[Variant "Standard"]
[Site "Europe Echecs"]

[Event "Championnat du monde jeunes U12F"]
[Date "2024.11.26"]
[White "Tong Thai Hoang An"]
[Black "Xu, Luna Yuexiu"]
[WhiteElo "1869"]
[BlackElo "1821"]
[Round "11.3"]
[Result "1-0"]
[TimeControl "5400+30"]

1. d4 {[%clk 1:30:57]} 1... d5 {[%clk 1:30:39]} 2. c4 {[%clk 1:31:10]} 2... c6
{[%clk 1:30:34]} 3. Nc3 {[%clk 1:29:37]} 3... Nf6 {[%clk 1:30:25]} 4. e3 {[%clk
1:27:45]} 4... e6 {[%clk 1:30:21]} 5. Nf3 {[%clk 1:27:57]} 5... Nbd7 {[%clk
1:30:21]} 6. Bd3 {[%clk 1:22:17]} 6... dxc4 {[%clk 1:30:00]} 7. Bxc4 {[%clk
1:22:40]} 7... b5 {[%clk 1:30:14]} 8. Bd3 {[%clk 1:22:44]} 8... Bb7 {[%clk
1:29:55]} 9. O-O {[%clk 1:16:55]} 9... a6 {[%clk 1:28:52]} 10. e4 {[%clk
1:11:12]} 10... b4 {[%clk 1:25:48]} 11. Na4 {[%clk 1:09:49]} 11... c5 {[%clk
1:24:43]} 12. dxc5 {[%clk 1:08:22]} 12... Bxc5 {[%clk 1:22:00]} 13. Qe2 {[%clk
1:05:39]} 13... O-O {[%clk 1:21:22]} 14. Bg5 {[%clk 1:03:30]} 14... Be7 {[%clk
1:13:49]} 15. Rac1 {[%clk 1:00:15]} 15... Qa5 {[%clk 1:11:34]} 16. b3 {[%clk
0:57:28]} 16... Ne5 {[%clk 1:10:41]} 17. Bxf6 {[%clk 0:53:11]} 17... Nxf3+
{[%clk 1:10:40]} 18. Qxf3 {[%clk 0:51:54]} 18... Bxf6 {[%clk 1:11:00]} 19. Rc5
{[%clk 0:49:08]} 19... Qd8 {[%clk 1:10:17]} 20. Qe2 {[%clk 0:46:23]} 20... e5
{[%clk 1:05:04]} 21. Rfc1 {[%clk 0:41:56]} 21... Qd6 {[%clk 1:03:36]} 22. Bc4
{[%clk 0:33:18]} 22... Rfc8 {[%clk 0:55:49]} 23. Rd1 {[%clk 0:31:37]} 23... Qe7
{[%clk 0:51:08]} 24. Rxc8+ {[%clk 0:30:27]} 24... Bxc8 {[%clk 0:49:43]} 25. Nb6
{[%clk 0:25:08]} 25... Rb8 {[%clk 0:49:30]} 26. Nd5 {[%clk 0:21:59]} 26... Qd6
{[%clk 0:44:58]} 27. Qd2 {[%clk 0:21:22]} 27... Bb7 {[%clk 0:41:24]} 28. Nxf6+
{[%clk 0:20:24]} 28... Qxf6 {[%clk 0:41:44]} 29. Qxb4 {[%clk 0:20:44]} 29... h6
{[%clk 0:35:54]} 30. Rd7 {[%clk 0:19:26]} 30... Qc6 {[%clk 0:34:04]} 31. Qe7
{[%clk 0:18:32]} 31... Rf8 {[%clk 0:30:51]} 32. Rxb7 {[%clk 0:18:52]} 32... Qxe4
{[%clk 0:30:48]} 33. Bf1 {[%clk 0:19:07]} 33... Qe1 {[%clk 0:29:34]} 34. a4
{[%clk 0:19:05]} 34... a5 {[%clk 0:28:41]} 35. b4 {[%clk 0:18:49]} 35... axb4
{[%clk 0:27:17]} 36. Qxb4 {[%clk 0:18:21]} 36... Qa1 {[%clk 0:26:58]} 37. Rb8
{[%clk 0:18:21]} 37... Rxb8 {[%clk 0:27:14]} 38. Qxb8+ {[%clk 0:18:47]} 38...
Kh7 {[%clk 0:27:33]} 39. Qb5 {[%clk 0:18:51]} 39... f5 {[%clk 0:27:21]} 40. a5
{[%clk 0:19:16]} 40... h5 {[%clk 0:26:50]} 41. a6 {[%clk 0:19:39]} 41... h4
{[%clk 0:26:46]} 42. h3 {[%clk 0:20:03]} 42... f4 {[%clk 0:26:39]} 43. Qd3+
{[%clk 0:20:04]} 43... Kh6 {[%clk 0:26:31]} 44. Qe4 {[%clk 0:20:20]} 44... g5
{[%clk 0:26:22]} 45. Qc6+ {[%clk 0:20:37]} 45... Kh5 {[%clk 0:26:41]} 46. Qb7
{[%clk 0:21:01]} 46... g4 {[%clk 0:26:20]} 47. Qh7+ {[%clk 0:21:25]} 47... Kg5
{[%clk 0:26:44]} 48. Qg7+ {[%clk 0:21:50]} 48... Kf5 {[%clk 0:27:03]} 49. Qxg4+
{[%clk 0:22:13]} 49... Ke4 {[%clk 0:27:10]} 50. Qxh4 {[%clk 0:22:32]} 50... Kd4
{[%clk 0:27:08]} 51. Qd8+ {[%clk 0:22:46]} 51... Kc5 {[%clk 0:27:28]} 52. Qc7+
{[%clk 0:23:02]} 52... Kd5 {[%clk 0:27:46]} 53. a7 1-0

[Variant "Standard"]
[Site "Europe Echecs"]

[Event "Championnat du monde jeunes U12F"]
[Date "2024.11.26"]
[White "Li, Sophie"]
[Black "Pratitee Bordoloi"]
[WhiteElo "1798"]
[BlackElo "1929"]
[Round "11.4"]
[Result "0-1"]
[TimeControl "5400+30"]

1. e4 {[%clk 1:30:47]} 1... c6 {[%clk 1:30:52]} 2. d4 {[%clk 1:31:05]} 2... d5
{[%clk 1:31:12]} 3. Nc3 {[%clk 1:31:26]} 3... dxe4 {[%clk 1:31:30]} 4. Nxe4
{[%clk 1:31:49]} 4... Nf6 {[%clk 1:31:50]} 5. Nxf6+ {[%clk 1:31:54]} 5... exf6
{[%clk 1:32:11]} 6. c3 {[%clk 1:31:57]} 6... Bd6 {[%clk 1:32:27]} 7. Bd3 {[%clk
1:32:13]} 7... O-O {[%clk 1:32:42]} 8. Qc2 {[%clk 1:32:19]} 8... h5 {[%clk
1:32:23]} 9. Ne2 {[%clk 1:32:19]} 9... Re8 {[%clk 1:31:48]} 10. O-O {[%clk
1:31:26]} 10... h4 {[%clk 1:32:01]} 11. Nf4 {[%clk 1:29:20]} 11... Qc7 {[%clk
1:28:18]} 12. g3 {[%clk 1:26:50]} 12... Nd7 {[%clk 1:19:30]} 13. Qd1 {[%clk
1:23:51]} 13... g6 {[%clk 1:06:31]} 14. Qf3 {[%clk 1:19:43]} 14... hxg3 {[%clk
0:58:10]} 15. hxg3 {[%clk 1:17:44]} 15... Nf8 {[%clk 0:52:16]} 16. Kg2 {[%clk
1:15:38]} 16... Nh7 {[%clk 0:48:03]} 17. Bc4 {[%clk 1:09:50]} 17... Ng5 {[%clk
0:43:52]} 18. Qd1 {[%clk 1:09:23]} 18... Bf5 {[%clk 0:42:13]} 19. Bd3 {[%clk
1:07:30]} 19... Qd7 {[%clk 0:38:23]} 20. Rh1 {[%clk 1:03:17]} 20... Bg4 {[%clk
0:36:36]} 21. Be2 {[%clk 1:01:11]} 21... Rxe2 {[%clk 0:34:41]} 22. Nxe2 {[%clk
1:01:04]} 22... Bh3+ {[%clk 0:34:47]} 23. Rxh3 {[%clk 1:00:01]} 23... Qxh3+
{[%clk 0:35:05]} 0-1

[Variant "Standard"]
[Site "Europe Echecs"]